[Event "Titled Tuesday Blitz October 5 2021"]
[White "Seul, Georg"]
[Black "Mekhitarian, Krikor Sevag"]
[WhiteFideId "4601653"]
[BlackFideId "2107660"]
[WhiteElo "2332"]
[BlackElo "2598"]
[Result "0-1"]
[Round "11"]
[TimeControl "180+1"]
[Date "2021.10.05"]
[WhiteClock "0:00:34"]
[BlackClock "0:00:13"]

1. e4 {[%clk 0:03:00]}  c5 {[%clk 0:02:56]} 2. Nf3 {[%clk 0:03:00]}  e6 {[%clk 0:02:56]} 3. b3 {[%clk 0:03:00]}  a6 {[%clk 0:02:52]} 4. Bb2 {[%clk 0:02:58]}  Nc6 {[%clk 0:02:49]} 5. c4 {[%clk 0:02:57]}  Nf6 {[%clk 0:02:49]} 6. e5 {[%clk 0:02:54]}  Ng4 {[%clk 0:02:47]} 7. h3 {[%clk 0:02:50]}  Nh6 {[%clk 0:02:47]} 8. Bd3 {[%clk 0:02:49]}  d6 {[%clk 0:02:10]} 9. exd6 {[%clk 0:02:47]}  f6 {[%clk 0:01:55]} 10. Be4 {[%clk 0:02:30]}  Bxd6 {[%clk 0:01:53]} 11. Bxc6+ {[%clk 0:01:59]}  bxc6 {[%clk 0:01:53]} 12. O-O {[%clk 0:01:52]}  e5 {[%clk 0:01:53]} 13. Nc3 {[%clk 0:01:51]}  O-O {[%clk 0:01:43]} 14. d3 {[%clk 0:01:50]}  Nf5 {[%clk 0:01:37]} 15. Ne4 {[%clk 0:01:50]}  Be7 {[%clk 0:01:37]} 16. Ba3 {[%clk 0:01:43]}  Qa5 {[%clk 0:01:36]} 17. Qc1 {[%clk 0:01:42]}  Rd8 {[%clk 0:01:28]} 18. Rd1 {[%clk 0:01:41]}  Be6 {[%clk 0:01:24]} 19. Rb1 {[%clk 0:01:39]}  Rd7 {[%clk 0:01:16]} 20. Nxc5 {[%clk 0:01:30]}  Bxc5 {[%clk 0:01:14]} 21. b4 {[%clk 0:01:31]}  Bxf2+ {[%clk 0:00:57]} 22. Kxf2 {[%clk 0:01:27]}  Qb6+ {[%clk 0:00:52]} 23. c5 {[%clk 0:01:23]}  Qb5 {[%clk 0:00:53]} 24. Qc3 {[%clk 0:01:15]}  Rad8 {[%clk 0:00:48]} 25. g4 {[%clk 0:00:51]}  Nd4 {[%clk 0:00:37]} 26. Ne1 {[%clk 0:00:45]}  h5 {[%clk 0:00:31]} 27. gxh5 {[%clk 0:00:42]}  Qb8 {[%clk 0:00:27]} 28. Bc1 {[%clk 0:00:39]}  e4 {[%clk 0:00:26]} 29. dxe4 {[%clk 0:00:34]}  Nb5 {[%clk 0:00:13]} 0-1


[Site "https://www.chess.com"]

[Event "Titled Tuesday Blitz October 5 2021"]
[White "Sychev, Klementy"]
[Black "Goncalves, Ivan Mesquita V"]
[WhiteFideId "4114060"]
[BlackFideId "2114224"]
[WhiteElo "2615"]
[BlackElo "2299"]
[Result "1-0"]
[Round "11"]
[TimeControl "180+1"]
[Date "2021.10.05"]
[WhiteClock "0:00:04"]
[BlackClock "0:00:03"]

1. b3 {[%clk 0:03:00]}  c5 {[%clk 0:02:59]} 2. e4 {[%clk 0:02:54]}  e6 {[%clk 0:02:57]} 3. Bb2 {[%clk 0:02:54]}  a6 {[%clk 0:02:57]} 4. f4 {[%clk 0:02:53]}  b5 {[%clk 0:02:57]} 5. d4 {[%clk 0:02:49]}  cxd4 {[%clk 0:02:57]} 6. Nf3 {[%clk 0:02:47]}  Bb7 {[%clk 0:02:56]} 7. Qxd4 {[%clk 0:02:45]}  Nc6 {[%clk 0:02:56]} 8. Qe3 {[%clk 0:02:42]}  Nf6 {[%clk 0:02:51]} 9. Nc3 {[%clk 0:02:41]}  Qa5 {[%clk 0:02:41]} 10. a3 {[%clk 0:02:39]}  Rc8 {[%clk 0:02:37]} 11. b4 {[%clk 0:02:24]}  Qc7 {[%clk 0:02:36]} 12. Bd3 {[%clk 0:02:20]}  Nxb4 {[%clk 0:02:29]} 13. O-O-O {[%clk 0:01:24]}  Nxd3+ {[%clk 0:02:23]} 14. Rxd3 {[%clk 0:01:23]}  b4 {[%clk 0:02:13]} 15. axb4 {[%clk 0:01:20]}  Bxb4 {[%clk 0:02:14]} 16. Qd4 {[%clk 0:01:13]}  Qa5 {[%clk 0:01:47]} 17. Rhd1 {[%clk 0:01:04]}  O-O {[%clk 0:01:31]} 18. g4 {[%clk 0:01:04]}  Bc5 {[%clk 0:01:14]} 19. Qe5 {[%clk 0:01:03]}  Bb4 {[%clk 0:01:00]} 20. g5 {[%clk 0:00:39]}  Qxe5 {[%clk 0:00:57]} 21. Nxe5 {[%clk 0:00:40]}  Nxe4 {[%clk 0:00:46]} 22. Nxd7 {[%clk 0:00:16]}  Nf2 {[%clk 0:00:33]} 23. Nxf8 {[%clk 0:00:15]}  Nxd3+ {[%clk 0:00:33]} 24. Rxd3 {[%clk 0:00:15]}  Kxf8 {[%clk 0:00:30]} 25. Na2 {[%clk 0:00:15]}  Be7 {[%clk 0:00:25]} 26. Rd7 {[%clk 0:00:14]}  Bd5 {[%clk 0:00:20]} 27. Nc3 {[%clk 0:00:11]}  Ke8 {[%clk 0:00:20]} 28. Ra7 {[%clk 0:00:10]}  Bc4 {[%clk 0:00:17]} 29. Kb1 {[%clk 0:00:06]}  Bc5 {[%clk 0:00:14]} 30. Rb7 {[%clk 0:00:05]}  Bd4 {[%clk 0:00:13]} 31. Ne4 {[%clk 0:00:04]}  Bd5 {[%clk 0:00:06]} 32. Nd6+ {[%clk 0:00:04]}  Kd8 {[%clk 0:00:07]} 33. Nxf7+ {[%clk 0:00:04]}  Ke8 {[%clk 0:00:07]} 34. Nd6+ {[%clk 0:00:04]}  Kd8 {[%clk 0:00:08]} 35. Bxd4 {[%clk 0:00:04]}  Bxb7 {[%clk 0:00:07]} 36. Nxb7+ {[%clk 0:00:04]}  Kc7 {[%clk 0:00:07]} 37. Nc5 {[%clk 0:00:04]}  Kc6 {[%clk 0:00:07]} 38. Nxa6 {[%clk 0:00:04]}  Kd5 {[%clk 0:00:05]} 39. Be5 {[%clk 0:00:04]}  Kc4 {[%clk 0:00:04]} 40. Nc7 {[%clk 0:00:03]}  Rd8 {[%clk 0:00:01]} 41. Kc1 {[%clk 0:00:03]}  Rd1+ {[%clk 0:00:02]} 42. Kxd1 {[%clk 0:00:03]}  g6 {[%clk 0:00:03]} 43. Ke2 {[%clk 0:00:04]} 1-0


[Site "https://www.chess.com"]

[Event "Titled Tuesday Blitz October 5 2021"]
[White "Sydoryka, Vladyslav"]
[Black "Gaehwiler, Gabriel"]
[WhiteFideId "14145928"]
[BlackFideId "1314530"]
[WhiteElo "2282"]
[BlackElo "2320"]
[Result "0-1"]
[Round "11"]
[TimeControl "180+1"]
[Date "2021.10.05"]
[WhiteClock "0:00:19"]
[BlackClock "0:00:24"]

1. c4 {[%clk 0:03:00]}  g6 {[%clk 0:02:58]} 2. g3 {[%clk 0:02:58]}  Bg7 {[%clk 0:02:58]} 3. Bg2 {[%clk 0:02:54]}  Nf6 {[%clk 0:02:57]} 4. Nc3 {[%clk 0:02:54]}  O-O {[%clk 0:02:57]} 5. d3 {[%clk 0:02:54]}  c5 {[%clk 0:02:57]} 6. Nf3 {[%clk 0:02:54]}  Nc6 {[%clk 0:02:57]} 7. O-O {[%clk 0:02:54]}  d6 {[%clk 0:02:57]} 8. Rb1 {[%clk 0:02:54]}  Rb8 {[%clk 0:02:53]} 9. a3 {[%clk 0:02:54]}  b6 {[%clk 0:02:53]} 10. b4 {[%clk 0:02:53]}  Bb7 {[%clk 0:02:53]} 11. e3 {[%clk 0:02:37]}  Rc8 {[%clk 0:02:38]} 12. Qe2 {[%clk 0:02:35]}  Qc7 {[%clk 0:02:36]} 13. Rd1 {[%clk 0:02:34]}  Rfe8 {[%clk 0:02:34]} 14. Bd2 {[%clk 0:02:30]}  Ne5 {[%clk 0:02:24]} 15. Nxe5 {[%clk 0:01:50]}  dxe5 {[%clk 0:02:23]} 16. bxc5 {[%clk 0:01:50]}  Bxg2 {[%clk 0:02:23]} 17. Kxg2 {[%clk 0:01:45]}  Qxc5 {[%clk 0:02:23]} 18. Rb5 {[%clk 0:01:36]}  Qc6+ {[%clk 0:02:23]} 19. Qf3 {[%clk 0:01:36]}  Red8 {[%clk 0:02:17]} 20. Qxc6 {[%clk 0:01:29]}  Rxc6 {[%clk 0:02:18]} 21. Be1 {[%clk 0:01:28]}  e4 {[%clk 0:02:13]} 22. Nd5 {[%clk 0:01:04]}  Kf8 {[%clk 0:01:48]} 23. Bb4 {[%clk 0:00:53]}  Rd7 {[%clk 0:00:39]} 24. dxe4 {[%clk 0:00:49]}  Ke8 {[%clk 0:00:39]} 25. Nxf6+ {[%clk 0:00:42]}  Bxf6 {[%clk 0:00:39]} 26. Rxd7 {[%clk 0:00:42]}  Kxd7 {[%clk 0:00:40]} 27. e5 {[%clk 0:00:43]}  Bg7 {[%clk 0:00:40]} 28. c5 {[%clk 0:00:40]}  e6 {[%clk 0:00:26]} 29. cxb6 {[%clk 0:00:35]}  axb6 {[%clk 0:00:27]} 30. Bd6 {[%clk 0:00:22]}  f6 {[%clk 0:00:26]} 31. f4 {[%clk 0:00:20]}  fxe5 {[%clk 0:00:26]} 32. fxe5 {[%clk 0:00:19]}  Bh6 {[%clk 0:00:27]} 33. Kf3 {[%clk 0:00:18]}  Rc3 {[%clk 0:00:25]} 34. Rxb6 {[%clk 0:00:18]}  Bxe3 {[%clk 0:00:24]} 35. Kg4 {[%clk 0:00:19]}  Bxb6 {[%clk 0:00:24]} 0-1


[Site "https://www.chess.com"]

[Event "Titled Tuesday Blitz October 5 2021"]
[White "Tiarks, Jann-Christian"]
[Black "Estrada Nieto, Julian"]
[WhiteFideId "12951595"]
[BlackFideId "5101018"]
[WhiteElo "2176"]
[BlackElo "2270"]
[Result "1-0"]
[Round "11"]
[TimeControl "180+1"]
[Date "2021.10.05"]
[WhiteClock "0:00:55"]
[BlackClock "0:00:07"]

1. e4 {[%clk 0:03:00]}  e5 {[%clk 0:02:59]} 2. Nf3 {[%clk 0:02:58]}  Nc6 {[%clk 0:02:59]} 3. Bb5 {[%clk 0:02:51]}  a6 {[%clk 0:02:59]} 4. Ba4 {[%clk 0:02:51]}  Nf6 {[%clk 0:02:59]} 5. d3 {[%clk 0:02:48]}  d6 {[%clk 0:02:56]} 6. h3 {[%clk 0:02:47]}  g6 {[%clk 0:02:55]} 7. c3 {[%clk 0:02:47]}  Bg7 {[%clk 0:02:55]} 8. O-O {[%clk 0:02:47]}  O-O {[%clk 0:02:55]} 9. Re1 {[%clk 0:02:45]}  Bd7 {[%clk 0:02:55]} 10. Nbd2 {[%clk 0:02:45]}  Qe8 {[%clk 0:02:54]} 11. Bc2 {[%clk 0:02:43]}  Nh5 {[%clk 0:02:53]} 12. Nf1 {[%clk 0:02:42]}  f5 {[%clk 0:02:48]} 13. d4 {[%clk 0:02:39]}  fxe4 {[%clk 0:02:30]} 14. Bxe4 {[%clk 0:02:35]}  Nf6 {[%clk 0:02:18]} 15. Bxc6 {[%clk 0:02:29]}  Bxc6 {[%clk 0:02:17]} 16. dxe5 {[%clk 0:02:29]}  Bxf3 {[%clk 0:01:58]} 17. Qxf3 {[%clk 0:02:26]}  dxe5 {[%clk 0:01:49]} 18. Qxb7 {[%clk 0:02:26]}  c6 {[%clk 0:01:18]} 19. Bg5 {[%clk 0:02:03]}  Nd5 {[%clk 0:01:11]} 20. c4 {[%clk 0:01:56]}  Rf7 {[%clk 0:00:50]} 21. Qb3 {[%clk 0:01:47]}  Rb8 {[%clk 0:00:50]} 22. Qa4 {[%clk 0:01:39]}  Nb4 {[%clk 0:00:36]} 23. Rad1 {[%clk 0:01:35]}  c5 {[%clk 0:00:30]} 24. Qxe8+ {[%clk 0:01:32]}  Rxe8 {[%clk 0:00:30]} 25. a3 {[%clk 0:01:31]}  Nc6 {[%clk 0:00:29]} 26. Ne3 {[%clk 0:01:26]}  Nd4 {[%clk 0:00:26]} 27. Nd5 {[%clk 0:01:24]}  Rb8 {[%clk 0:00:23]} 28. b4 {[%clk 0:01:18]}  Nc2 {[%clk 0:00:15]} 29. Re2 {[%clk 0:01:16]}  Nxa3 {[%clk 0:00:15]} 30. bxc5 {[%clk 0:01:11]}  Nxc4 {[%clk 0:00:15]} 31. Rc2 {[%clk 0:01:05]}  Na5 {[%clk 0:00:11]} 32. c6 {[%clk 0:01:04]}  Rc8 {[%clk 0:00:09]} 33. Ne7+ {[%clk 0:01:02]}  Rxe7 {[%clk 0:00:08]} 34. Bxe7 {[%clk 0:01:03]}  Rxc6 {[%clk 0:00:08]} 35. Rxc6 {[%clk 0:01:00]}  Nxc6 {[%clk 0:00:08]} 36. Bd6 {[%clk 0:01:00]}  Kf7 {[%clk 0:00:07]} 37. Rc1 {[%clk 0:01:01]}  Nd4 {[%clk 0:00:07]} 38. Rc7+ {[%clk 0:01:01]}  Ke6 {[%clk 0:00:06]} 39. Rxg7 {[%clk 0:00:59]}  Kxd6 {[%clk 0:00:06]} 40. Rxh7 {[%clk 0:01:00]}  Kc5 {[%clk 0:00:04]} 41. Rg7 {[%clk 0:00:59]}  a5 {[%clk 0:00:04]} 42. Rxg6 {[%clk 0:01:00]}  a4 {[%clk 0:00:04]} 43. Ra6 {[%clk 0:00:59]}  Kb5 {[%clk 0:00:04]} 44. Ra8 {[%clk 0:00:59]}  Nc6 {[%clk 0:00:03]} 45. h4 {[%clk 0:00:55]}  Na5 {[%clk 0:00:03]} 46. h5 {[%clk 0:00:52]}  a3 {[%clk 0:00:03]} 47. Rb8+ {[%clk 0:00:53]}  Kc4 {[%clk 0:00:03]} 48. Rb1 {[%clk 0:00:54]}  a2 {[%clk 0:00:02]} 49. Ra1 {[%clk 0:00:54]}  Kb3 {[%clk 0:00:03]} 50. h6 {[%clk 0:00:54]}  Nc6 {[%clk 0:00:03]} 51. h7 {[%clk 0:00:54]}  Nd4 {[%clk 0:00:03]} 52. Rxa2 {[%clk 0:00:54]}  Kxa2 {[%clk 0:00:02]} 53. h8=Q {[%clk 0:00:55]}  Kb3 {[%clk 0:00:03]} 54. Qxe5 {[%clk 0:00:54]}  Kc4 {[%clk 0:00:04]} 55. Qxd4+ {[%clk 0:00:54]}  Kxd4 {[%clk 0:00:04]} 56. g4 {[%clk 0:00:54]}  Ke4 {[%clk 0:00:03]} 57. Kg2 {[%clk 0:00:54]}  Kf4 {[%clk 0:00:04]} 58. f3 {[%clk 0:00:54]}  Kg5 {[%clk 0:00:04]} 59. Kg3 {[%clk 0:00:55]}  Kg6 {[%clk 0:00:04]} 60. f4 {[%clk 0:00:54]}  Kf6 {[%clk 0:00:05]} 61. f5 {[%clk 0:00:53]}  Kg5 {[%clk 0:00:05]} 62. Kf3 {[%clk 0:00:54]}  Kf6 {[%clk 0:00:04]} 63. Kf4 {[%clk 0:00:55]}  Kf7 {[%clk 0:00:04]} 64. g5 {[%clk 0:00:56]}  Kg7 {[%clk 0:00:04]} 65. Ke5 {[%clk 0:00:56]}  Kf7 {[%clk 0:00:05]} 66. Kd6 {[%clk 0:00:56]}  Ke8 {[%clk 0:00:05]} 67. g6 {[%clk 0:00:55]}  Kf8 {[%clk 0:00:06]} 68. Kd7 {[%clk 0:00:53]}  Kg7 {[%clk 0:00:07]} 69. Ke7 {[%clk 0:00:53]}  Kg8 {[%clk 0:00:06]} 70. f6 {[%clk 0:00:54]}  Kh8 {[%clk 0:00:07]} 71. f7 {[%clk 0:00:54]}  Kg7 {[%clk 0:00:07]} 72. f8=Q+ {[%clk 0:00:55]}  Kxg6 {[%clk 0:00:07]} 73. Qf7+ {[%clk 0:00:55]} 1-0


[Site "https://www.chess.com"]

[Event "Titled Tuesday Blitz October 5 2021"]
[White "Vifleemskaia, Svetlana"]
[Black "Matamoros Franco, Carlos S."]
[WhiteFideId "4129490"]
[BlackFideId "3600017"]
[WhiteElo "1945"]
[BlackElo "2554"]
[Result "1-0"]
[Round "11"]
[TimeControl "180+1"]
[Date "2021.10.05"]
[WhiteClock "0:00:11"]
[BlackClock "0:00:03"]

1. d4 {[%clk 0:02:58]}  Nf6 {[%clk 0:02:59]} 2. c4 {[%clk 0:02:57]}  c5 {[%clk 0:02:58]} 3. d5 {[%clk 0:02:56]}  g6 {[%clk 0:02:58]} 4. Nc3 {[%clk 0:02:56]}  Bg7 {[%clk 0:02:58]} 5. e4 {[%clk 0:02:56]}  d6 {[%clk 0:02:59]} 6. Nf3 {[%clk 0:02:53]}  O-O {[%clk 0:02:59]} 7. Nd2 {[%clk 0:02:53]}  e6 {[%clk 0:02:53]} 8. Be2 {[%clk 0:02:51]}  Na6 {[%clk 0:02:53]} 9. O-O {[%clk 0:02:50]}  Nc7 {[%clk 0:02:53]} 10. a4 {[%clk 0:02:48]}  Na6 {[%clk 0:02:52]} 11. h3 {[%clk 0:02:48]}  e5 {[%clk 0:02:50]} 12. g4 {[%clk 0:02:42]}  h5 {[%clk 0:02:44]} 13. f3 {[%clk 0:02:26]}  Nh7 {[%clk 0:02:41]} 14. Qe1 {[%clk 0:02:16]}  Bf6 {[%clk 0:02:35]} 15. Qg3 {[%clk 0:02:10]}  h4 {[%clk 0:02:32]} 16. Qg2 {[%clk 0:02:09]}  Nb4 {[%clk 0:02:31]} 17. Bd1 {[%clk 0:01:52]}  Nd3 {[%clk 0:02:22]} 18. Nb3 {[%clk 0:01:47]}  Bg5 {[%clk 0:02:17]} 19. Be2 {[%clk 0:01:42]}  Nxc1 {[%clk 0:01:41]} 20. Nxc1 {[%clk 0:01:40]}  Kh8 {[%clk 0:01:42]} 21. Nd3 {[%clk 0:01:39]}  Be3+ {[%clk 0:01:38]} 22. Kh2 {[%clk 0:01:38]}  Bd7 {[%clk 0:01:34]} 23. f4 {[%clk 0:01:28]}  exf4 {[%clk 0:01:30]} 24. Nxf4 {[%clk 0:01:28]}  Qe7 {[%clk 0:01:24]} 25. Kh1 {[%clk 0:01:24]}  Ng5 {[%clk 0:01:22]} 26. Bd3 {[%clk 0:01:18]}  Qe5 {[%clk 0:01:13]} 27. Nce2 {[%clk 0:01:11]}  Kg7 {[%clk 0:01:07]} 28. Rab1 {[%clk 0:01:05]}  Rae8 {[%clk 0:01:02]} 29. Rbe1 {[%clk 0:00:47]}  Qxb2 {[%clk 0:00:51]} 30. Rb1 {[%clk 0:00:45]}  Qa3 {[%clk 0:00:45]} 31. Rxb7 {[%clk 0:00:42]}  Bc8 {[%clk 0:00:35]} 32. Rxa7 {[%clk 0:00:39]}  Qb2 {[%clk 0:00:30]} 33. e5 {[%clk 0:00:29]}  Bxf4 {[%clk 0:00:19]} 34. Nxf4 {[%clk 0:00:26]}  Qxg2+ {[%clk 0:00:17]} 35. Kxg2 {[%clk 0:00:26]}  Rxe5 {[%clk 0:00:16]} 36. Nxg6 {[%clk 0:00:25]}  Re3 {[%clk 0:00:16]} 37. Nxf8 {[%clk 0:00:23]}  Rg3+ {[%clk 0:00:16]} 38. Kf2 {[%clk 0:00:20]}  Rxd3 {[%clk 0:00:15]} 39. Ne6+ {[%clk 0:00:19]}  Nxe6 {[%clk 0:00:13]} 40. dxe6 {[%clk 0:00:19]}  Bxe6 {[%clk 0:00:14]} 41. a5 {[%clk 0:00:18]}  Bxc4 {[%clk 0:00:13]} 42. Ra1 {[%clk 0:00:17]}  Rxh3 {[%clk 0:00:11]} 43. a6 {[%clk 0:00:17]}  Rh2+ {[%clk 0:00:08]} 44. Ke3 {[%clk 0:00:17]}  h3 {[%clk 0:00:08]} 45. Rd7 {[%clk 0:00:16]}  Rg2 {[%clk 0:00:08]} 46. a7 {[%clk 0:00:13]}  Bd5 {[%clk 0:00:08]} 47. Rxd6 {[%clk 0:00:14]}  Bb7 {[%clk 0:00:07]} 48. Rd7 {[%clk 0:00:13]}  Bc6 {[%clk 0:00:08]} 49. Rc7 {[%clk 0:00:12]}  Ba8 {[%clk 0:00:08]} 50. Rc8 {[%clk 0:00:12]}  Bd5 {[%clk 0:00:08]} 51. a8=Q {[%clk 0:00:11]}  Bxa8 {[%clk 0:00:07]} 52. Raxa8 {[%clk 0:00:11]}  h2 {[%clk 0:00:08]} 53. Rh8 {[%clk 0:00:11]}  c4 {[%clk 0:00:08]} 54. Kf3 {[%clk 0:00:11]}  Rd2 {[%clk 0:00:07]} 55. Kg3 {[%clk 0:00:10]}  c3 {[%clk 0:00:07]} 56. Rxh2 {[%clk 0:00:10]}  c2 {[%clk 0:00:07]} 57. Rc8 {[%clk 0:00:08]}  Rd3+ {[%clk 0:00:06]} 58. Kf4 {[%clk 0:00:08]}  Rd4+ {[%clk 0:00:05]} 59. Ke3 {[%clk 0:00:08]}  Rxg4 {[%clk 0:00:04]} 60. Rhxc2 {[%clk 0:00:09]}  Rg6 {[%clk 0:00:04]} 61. Kf3 {[%clk 0:00:09]}  Rf6+ {[%clk 0:00:04]} 62. Ke4 {[%clk 0:00:10]}  Re6+ {[%clk 0:00:04]} 63. Kf5 {[%clk 0:00:10]}  Rg6 {[%clk 0:00:04]} 64. Ke5 {[%clk 0:00:11]}  Rg5+ {[%clk 0:00:04]} 65. Kf4 {[%clk 0:00:11]}  Rg6 {[%clk 0:00:04]} 66. R8c5 {[%clk 0:00:11]}  Rg1 {[%clk 0:00:03]} 67. Rg5+ {[%clk 0:00:11]}  Rxg5 {[%clk 0:00:03]} 68. Kxg5 {[%clk 0:00:11]} 1-0


[Site "https://www.chess.com"]

[Event "Titled Tuesday Blitz October 5 2021"]
[White "Vlassov, Nikolai"]
[Black "Ivanisevic, Ivan"]
[WhiteFideId "4103360"]
[BlackFideId "912417"]
[WhiteElo "2407"]
[BlackElo "2499"]
[Result "0-1"]
[Round "11"]
[TimeControl "180+1"]
[Date "2021.10.05"]
[WhiteClock "0:00:04"]
[BlackClock "0:01:42"]

1. e4 {[%clk 0:03:00]}  c5 {[%clk 0:02:58]} 2. c3 {[%clk 0:03:01]}  d5 {[%clk 0:02:50]} 3. exd5 {[%clk 0:03:01]}  Qxd5 {[%clk 0:02:51]} 4. d4 {[%clk 0:03:01]}  g6 {[%clk 0:02:51]} 5. dxc5 {[%clk 0:03:01]}  Qxc5 {[%clk 0:02:52]} 6. Be3 {[%clk 0:03:01]}  Qc7 {[%clk 0:02:45]} 7. Bxa7 {[%clk 0:03:01]}  Rxa7 {[%clk 0:02:44]} 8. Qd4 {[%clk 0:03:00]}  Ra5 {[%clk 0:02:44]} 9. Qxh8 {[%clk 0:03:00]}  Nf6 {[%clk 0:02:44]} 10. Nf3 {[%clk 0:03:00]}  Nc6 {[%clk 0:02:33]} 11. Nbd2 {[%clk 0:02:53]}  Rh5 {[%clk 0:02:23]} 12. a4 {[%clk 0:02:26]}  g5 {[%clk 0:02:22]} 13. Bb5 {[%clk 0:01:40]}  g4 {[%clk 0:02:20]} 14. Nd4 {[%clk 0:01:39]}  Rg5 {[%clk 0:02:17]} 15. Ne4 {[%clk 0:00:56]}  Nxe4 {[%clk 0:02:14]} 16. Qxh7 {[%clk 0:00:56]}  Nf6 {[%clk 0:02:08]} 17. Qc2 {[%clk 0:00:45]}  Re5+ {[%clk 0:02:07]} 18. Kf1 {[%clk 0:00:40]}  Bd7 {[%clk 0:02:05]} 19. Bxc6 {[%clk 0:00:39]}  bxc6 {[%clk 0:02:06]} 20. h4 {[%clk 0:00:33]}  gxh3 {[%clk 0:02:03]} 21. gxh3 {[%clk 0:00:33]}  Nh5 {[%clk 0:01:57]} 22. b4 {[%clk 0:00:26]}  Nf4 {[%clk 0:01:56]} 23. a5 {[%clk 0:00:17]}  c5 {[%clk 0:01:54]} 24. a6 {[%clk 0:00:13]}  cxd4 {[%clk 0:01:42]} 25. a7 {[%clk 0:00:13]}  Bb5+ {[%clk 0:01:41]} 26. c4 {[%clk 0:00:05]}  Bxc4+ {[%clk 0:01:40]} 27. Qxc4 {[%clk 0:00:03]}  Qxc4+ {[%clk 0:01:41]} 28. Kg1 {[%clk 0:00:04]}  Rg5+ {[%clk 0:01:41]} 29. Kh2 {[%clk 0:00:04]}  Rg2# {[%clk 0:01:42]} 0-1


[Site "https://www.chess.com"]

[Event "Titled Tuesday Blitz October 5 2021"]
[White "Vusatiuk, Vladimir"]
[Black "Aldokhin, Ivan"]
[WhiteFideId "14118610"]
[BlackFideId "24115720"]
[WhiteElo "2167"]
[BlackElo "2231"]
[Result "1-0"]
[Round "11"]
[TimeControl "180+1"]
[Date "2021.10.05"]
[WhiteClock "0:00:44"]
[BlackClock "0:01:27"]

1. d4 {[%clk 0:03:00]}  Nf6 {[%clk 0:02:59]} 2. c4 {[%clk 0:03:01]}  g6 {[%clk 0:02:59]} 3. Nc3 {[%clk 0:03:02]}  Bg7 {[%clk 0:03:00]} 4. e4 {[%clk 0:03:02]}  d6 {[%clk 0:03:01]} 5. Be2 {[%clk 0:03:03]}  O-O {[%clk 0:03:02]} 6. Bg5 {[%clk 0:03:04]}  Nc6 {[%clk 0:03:03]} 7. d5 {[%clk 0:03:02]}  Nb4 {[%clk 0:03:02]} 8. a3 {[%clk 0:03:01]}  Na6 {[%clk 0:03:03]} 9. Qd2 {[%clk 0:02:59]}  Re8 {[%clk 0:03:02]} 10. b4 {[%clk 0:02:50]}  e6 {[%clk 0:02:56]} 11. Nf3 {[%clk 0:02:30]}  exd5 {[%clk 0:02:56]} 12. exd5 {[%clk 0:02:09]}  Qe7 {[%clk 0:02:51]} 13. O-O {[%clk 0:02:05]}  Qf8 {[%clk 0:02:52]} 14. Rae1 {[%clk 0:01:54]}  Bd7 {[%clk 0:02:42]} 15. h3 {[%clk 0:01:51]}  h6 {[%clk 0:02:41]} 16. Be3 {[%clk 0:01:51]}  Kh7 {[%clk 0:02:40]} 17. Bd3 {[%clk 0:01:50]}  Qh8 {[%clk 0:02:37]} 18. Bd4 {[%clk 0:01:50]}  Rxe1 {[%clk 0:02:32]} 19. Rxe1 {[%clk 0:01:51]}  Re8 {[%clk 0:02:32]} 20. c5 {[%clk 0:01:39]}  dxc5 {[%clk 0:02:18]} 21. bxc5 {[%clk 0:01:40]}  Nb8 {[%clk 0:02:18]} 22. Ne5 {[%clk 0:01:31]}  Nxd5 {[%clk 0:01:51]} 23. Nxf7 {[%clk 0:01:09]}  Bxd4 {[%clk 0:01:50]} 24. Qxh6+ {[%clk 0:00:56]}  Kg8 {[%clk 0:01:46]} 25. Rxe8+ {[%clk 0:00:56]}  Bxe8 {[%clk 0:01:39]} 26. Nxh8 {[%clk 0:00:56]}  Nxc3 {[%clk 0:01:33]} 27. Nxg6 {[%clk 0:00:50]}  Nc6 {[%clk 0:01:28]} 28. Qf8+ {[%clk 0:00:47]}  Kh7 {[%clk 0:01:27]} 29. Ne5+ {[%clk 0:00:44]} 1-0


[Site "https://www.chess.com"]

[Event "Titled Tuesday Blitz October 5 2021"]
[White "Yoo, Christopher Woojin"]
[Black "Indjic, Aleksandar"]
[WhiteFideId "30909694"]
[BlackFideId "911925"]
[WhiteElo "2968"]
[BlackElo "2896"]
[Result "1-0"]
[Round "11"]
[TimeControl "180+1"]
[Date "2021.10.05"]
[WhiteClock "0:00:28"]
[BlackClock "0:00:25"]

1. e4 {[%clk 0:03:00]}  c5 {[%clk 0:02:59]} 2. Nf3 {[%clk 0:03:01]}  d6 {[%clk 0:02:59]} 3. d4 {[%clk 0:03:01]}  cxd4 {[%clk 0:03:00]} 4. Nxd4 {[%clk 0:03:02]}  Nf6 {[%clk 0:03:00]} 5. Nc3 {[%clk 0:03:02]}  a6 {[%clk 0:03:01]} 6. h4 {[%clk 0:03:02]}  h6 {[%clk 0:02:55]} 7. Qf3 {[%clk 0:02:37]}  g6 {[%clk 0:02:54]} 8. Bc4 {[%clk 0:02:10]}  Bg7 {[%clk 0:02:49]} 9. h5 {[%clk 0:02:03]}  Bg4 {[%clk 0:02:26]} 10. Qg3 {[%clk 0:02:03]}  e5 {[%clk 0:02:15]} 11. hxg6 {[%clk 0:01:30]}  exd4 {[%clk 0:02:12]} 12. gxf7+ {[%clk 0:01:31]}  Kf8 {[%clk 0:02:12]} 13. Bf4 {[%clk 0:01:24]}  d5 {[%clk 0:01:25]} 14. Nxd5 {[%clk 0:01:19]}  Be6 {[%clk 0:01:25]} 15. Bc7 {[%clk 0:01:09]}  Nxe4 {[%clk 0:00:46]} 16. Qf4 {[%clk 0:00:40]}  Qd7 {[%clk 0:00:46]} 17. Qxe4 {[%clk 0:00:40]}  Bxd5 {[%clk 0:00:45]} 18. Bd6+ {[%clk 0:00:32]}  Kxf7 {[%clk 0:00:37]} 19. Bxd5+ {[%clk 0:00:32]}  Kf6 {[%clk 0:00:29]} 20. Be5+ {[%clk 0:00:30]}  Ke7 {[%clk 0:00:26]} 21. Bxg7+ {[%clk 0:00:30]}  Kd6 {[%clk 0:00:25]} 22. Bxh8 {[%clk 0:00:28]} 1-0


[Site "https://www.chess.com"]